[Event "110th Anniversary WIM 2020"]
[Site "Hilleroed"]
[Date "2020.02.08"]
[Round "1.1"]
[White "Zaritovskaja, Margarita"]
[Black "Guindy, Esmat Susanne"]
[Result "1/2-1/2"]
[ECO "C13"]
[WhiteElo "2022"]
[BlackElo "2143"]
[Annotator "ChessBase"]
[PlyCount "79"]
[EventDate "2020.02.08"]
[EventType "tourn"]
[EventCountry "DEN"]
[SourceTitle "playchess.com"]
[Source "ChessBase"]
[SourceQuality "1"]
[TimeControl "40/5400+30:1800+30"]

1. e4 {[%emt 0:00:00]} e6 {[%emt 0:00:00]} 2. d4 {[%emt 0:00:00]} d5 {[%emt 0:00:00]} 3. Nc3 {[%emt 0:00:00]} Nf6 {[%emt 0:00:04]} 4. Bg5 {[%emt 0:00:11]} dxe4 {[%emt 0:00:16]} 5. Nxe4 {[%emt 0:00:10]} Be7 {[%emt 0:00:14]} 6. Bxf6 {[%emt 0:00:22]} gxf6 {[%emt 0:00:49]} 7. Nf3 {[%emt 0:00:38]} b6 {[%emt 0:01:44]} 8. Bc4 {[%emt 0:01:15]} Bb7 {[%emt 0:02:36]} 9. Qe2 {[%emt 0:01:10]} c6 {[%emt 0:02:15]} 10. O-O-O {[%emt 0:01:01]} Qc7 {[%emt 0:01:21]} 11. Rhe1 {[%emt 0:00:53]} Nd7 {[%emt 0:04:14]} 12. Kb1 {[%emt 0:02:25]} O-O-O {[%emt 0:01:51]} 13. Ba6 {[%emt 0:03:43]} Rhg8 {[%emt 0:07:18]} 14. g3 {[%emt 0:07:50]} f5 {[%emt 0:02:55]} 15. Bxb7+ {[%emt 0:05:38]} Kxb7 {[%emt 0:04:12]} 16. Ned2 {[%emt 0:03:55]} Bf6 {[%emt 0:15:08]} 17. Nc4 {[%emt 0:06:35]} Rg4 {[%emt 0:05:35]} 18. Ne3 {[%emt 0:14:54]} Rg7 {[%emt 0:10:20]} 19. Nc4 {[%emt 0:04:45]} Rg4 {[%emt 0:10:07]} 20. Ne3 {[%emt 0:00:39]} Rgg8 {[%emt 0:00:28]} 21. Nc4 {[%emt 0:00:41]} b5 {[%emt 0:06:24]} 22. Ncd2 {[%emt 0:08:09]} Nb6 {[%emt 0:00:53]} 23. Nb3 {[%emt 0:04:16]} Na4 {[%emt 0:00:49]} 24. c4 {[%emt 0:12:12]} a6 {[%emt 0:01:19]} 25. Rc1 {[%emt 0:01:46]} Rg4 {[%emt 0:05:35]} 26. Qd2 {[%emt 0:07:18]} c5 {[%emt 0:01:01]} 27. cxb5 {[%emt 0:01:25]} axb5 {[%emt 0:00:32]} 28. Nxc5+ {[%emt 0:04:05]} Nxc5 {[%emt 0:00:25]} 29. Qb4 {[%emt 0:00:10]} Be7 {[%emt 0:04:01]} 30. Qxb5+ {[%emt 0:00:44]} Qb6 {[%emt 0:00:51]} 31. Qxb6+ {[%emt 0:00:31]} Kxb6 {[%emt 0:00:08]} 32. dxc5+ {[%emt 0:00:39]} Bxc5 {[%emt 0:00:09]} 33. Ne5 {[%emt 0:02:17]} Re4 {[%emt 0:01:24]} 34. Nxf7 {[%emt 0:02:11]} Rd2 {[%emt 0:01:01]} 35. f3 {[%emt 0:01:22]} Ree2 {[%emt 0:00:37]} 36. Rxe2 {[%emt 0:00:33]} Rxe2 {[%emt 0:00:08]} 37. Rc2 {[%emt 0:00:52]} Re1+ {[%emt 0:00:10]} 38. Rc1 {[%emt 0:00:10]} Re2 {[%emt 0:00:05]} 39. Rc2 {[%emt 0:00:52]} Re1+ {[%emt 0:00:21]} 40. Rc1 {[%emt 0:03:43]} 1/2-1/2

[Event "110th Anniversary WIM 2020"]
[Site "Hilleroed"]
[Date "2020.02.08"]
[Round "1.2"]
[White "Nastase, Andreea-Cristina"]
[Black "Kakulidis, Ellen"]
[Result "1/2-1/2"]
[ECO "D31"]
[WhiteElo "2090"]
[BlackElo "2052"]
[Annotator "NA"]
[PlyCount "80"]
[EventDate "2020.02.08"]
[EventType "tourn"]
[EventCountry "DEN"]
[SourceTitle "playchess.com"]
[Source "ChessBase"]
[SourceQuality "1"]
[TimeControl "40/5400+30:1800+30"]

1. d4 {[%emt 0:00:00]} d5 {[%emt 0:00:00]} 2. c4 {[%emt 0:00:00]} e6 {[%emt 0:00:00]} 3. Nc3 {[%emt 0:00:00]} Be7 {[%emt 0:00:00]} 4. cxd5 {[%emt 0:00:00]} exd5 {[%emt 0:00:00]} 5. Bf4 {[%emt 0:00:00]} c6 {[%emt 0:00:09]} 6. e3 {[%emt 0:00:08]} Bd6 {[%emt 0:00:27]} 7. Bxd6 {[%emt 0:00:17]} Qxd6 {[%emt 0:00:08]} 8. Bd3 {[%emt 0:00:15]} Ne7 {[%emt 0:00:28]} 9. Qc2 {[%emt 0:00:10]} b6 {[%emt 0:00:23]} 10. Nf3 {[%emt 0:01:57]} Ba6 {[%emt 0:00:41]} 11. O-O {[%emt 0:00:45]} Bxd3 {[%emt 0:00:13]} 12. Qxd3 {[%emt 0:00:05]} Nd7 {[%emt 0:00:26]} 13. e4 {[%emt 0:06:19]} O-O {[%emt 0:07:07]} 14. e5 {[%emt 0:01:52]} Qe6 {[%emt 0:01:15]} 15. Ng5 {[%emt 0:10:31]} Qg6 {[%emt 0:06:38]} 16. Qxg6 {[%emt 0:00:19]} Nxg6 {[%emt 0:02:33]} 17. b4 {[%emt 0:01:40]} h6 {[%emt 0:31:26]} 18. Nf3 {[%emt 0:00:28]} Ne7 {[%emt 0:07:01]} 19. Rfd1 {[%emt 0:01:54]} Rfd8 {[%emt 0:02:47]} 20. h3 {[%emt 0:05:21]} Nf8 {[%emt 0:01:14]} 21. Rd2 {[%emt 0:07:12]} Ne6 {[%emt 0:03:30]} 22. Rad1 {[%emt 0:00:43]} Rac8 {[%emt 0:00:37]} 23. a4 {[%emt 0:02:48]} a5 {[%emt 0:09:31]} 24. bxa5 {[%emt 0:01:30]} bxa5 {[%emt 0:00:06]} 25. Rb1 {[%emt 0:01:48]} Rb8 {[%emt 0:02:06]} 26. Rdb2 {[%emt 0:00:42]} Rxb2 {[%emt 0:00:06]} 27. Rxb2 {[%emt 0:00:04]} Nf5 {[%emt 0:00:20]} 28. Ne2 {[%emt 0:02:31]} c5 {[%emt 0:04:49]} 29. dxc5 {[%emt 0:00:30]} Nxc5 {[%emt 0:00:56]} 30. g4 {[%emt 0:00:56]} Ne7 {[%emt 0:00:45]} 31. Rb5 {[%emt 0:00:26]} Nxa4 {[%emt 0:02:28]} 32. Rxa5 {[%emt 0:00:06]} Nb6 {[%emt 0:00:36]} 33. Nfd4 {[%emt 0:10:18]} Ra8 {[%emt 0:04:59]} 34. Rb5 {[%emt 0:02:07]} Nc4 {[%emt 0:00:41]} 35. Rb7 {[%emt 0:01:17]} Re8 {[%emt 0:02:59]} 36. e6 {[%emt 0:01:22]} fxe6 {[%emt 0:00:50]} 37. Nxe6 {[%emt 0:00:08]} Kf7 {[%emt 0:01:01]} 38. N2d4 {[%emt 0:02:37]} Nd6 {[%emt 0:04:31]} 39. Rd7 {[%emt 0:00:33]} Nb5 {[%emt 0:02:26]} 40. Nxb5 {[%emt 0:05:42]} Kxe6 {[%emt 0:00:09]} 1/2-1/2

[Event "110th Anniversary WIM 2020"]
[Site "Hilleroed"]
[Date "2020.02.08"]
[Round "1.4"]
[White "Miturova, Magdalena"]
[Black "Kejzar, Petra"]
[Result "1/2-1/2"]
[ECO "C00"]
[WhiteElo "2185"]
[BlackElo "2072"]
[Annotator "ChessBase"]
[PlyCount "53"]
[EventDate "2020.02.08"]
[EventType "tourn"]
[EventCountry "DEN"]
[SourceTitle "playchess.com"]
[Source "ChessBase"]
[SourceQuality "1"]
[TimeControl "40/5400+30:1800+30"]

1. e4 {[%emt 0:00:00]} c5 {[%emt 0:00:00]} 2. Nf3 {[%emt 0:00:00]} e6 {[%emt 0:00:00]} 3. g3 {[%emt 0:00:00]} Nc6 {[%emt 0:00:39]} 4. Bg2 {[%emt 0:00:47]} d6 {[%emt 0:00:46]} 5. O-O {[%emt 0:12:09]} Be7 {[%emt 0:07:01]} 6. c3 {[%emt 0:02:27]} Nf6 {[%emt 0:04:23]} 7. Qe2 {[%emt 0:02:30]} e5 {[%emt 0:04:22]} 8. Na3 {[%emt 0:03:49]} Bg4 {[%emt 0:04:08]} 9. h3 {[%emt 0:02:28]} Bh5 {[%emt 0:02:27]} 10. d3 {[%emt 0:07:59]} O-O {[%emt 0:08:13]} 11. Nc4 {[%emt 0:03:27]} Qc7 {[%emt 0:12:52]} 12. Ne3 {[%emt 0:05:29]} Rad8 {[%emt 0:06:20]} 13. g4 {[%emt 0:08:35]} Bg6 {[%emt 0:00:06]} 14. Nh4 {[%emt 0:01:01]} Rfe8 {[%emt 0:12:06]} 15. Qf3 {[%emt 0:06:56]} Bf8 {[%emt 0:03:56]} 16. Nxg6 {[%emt 0:09:12]} hxg6 {[%emt 0:00:20]} 17. g5 {[%emt 0:02:07]} Nh7 {[%emt 0:03:18]} 18. Nd5 {[%emt 0:01:31]} Qb8 {[%emt 0:00:02]} 19. h4 {[%emt 0:01:47]} Be7 {[%emt 0:03:50]} 20. Bh3 {[%emt 0:03:36]} Rf8 {[%emt 0:03:52]} 21. Qg4 {[%emt 0:04:59]} b5 {[%emt 0:03:13]} 22. Kg2 {[%emt 0:05:39]} Qb7 {[%emt 0:01:33]} 23. h5 {[%emt 0:03:32]} gxh5 {[%emt 0:01:34]} 24. Qxh5 {[%emt 0:00:03]} g6 {[%emt 0:02:12]} 25. Qh6 {[%emt 0:03:05]} f6 {[%emt 0:07:24]} 26. Be6+ {[%emt 0:00:54]} Kh8 {[%emt 0:00:05]} 27. Rh1 {[%emt 0:00:16]} 1/2-1/2

[Event "110th Anniversary WIM 2020"]
[Site "Hilleroed"]
[Date "2020.02.08"]
[Round "1.5"]
[White "Nilssen, Ellen Fredericia"]
[Black "Berke, Ana"]
[Result "1-0"]
[ECO "E10"]
[WhiteElo "2065"]
[BlackElo "2152"]
[Annotator "ChessBase"]
[PlyCount "96"]
[EventDate "2020.02.08"]
[EventType "tourn"]
[EventCountry "DEN"]
[SourceTitle "playchess.com"]
[Source "ChessBase"]
[SourceQuality "1"]
[TimeControl "40/5400+30:1800+30"]

1. d4 {[%emt 0:00:00]} Nf6 {[%emt 0:00:00]} 2. Nf3 {[%emt 0:00:00]} e6 {[%emt 0:00:00]} 3. c4 {[%emt 0:00:00]} c5 {[%emt 0:00:34]} 4. d5 {[%emt 0:00:46]} b5 {[%emt 0:00:14]} 5. Bg5 {[%emt 0:01:10]} exd5 {[%emt 0:02:03]} 6. cxd5 {[%emt 0:00:16]} d6 {[%emt 0:01:07]} 7. e4 {[%emt 0:01:10]} a6 {[%emt 0:07:51]} 8. a4 {[%emt 0:05:32]} Be7 {[%emt 0:01:21]} 9. Bxf6 {[%emt 0:19:28]} Bxf6 {[%emt 0:00:57]} 10. Ra2 {[%emt 0:02:38]} O-O {[%emt 0:04:43]} 11. Be2 {[%emt 0:03:59]} Re8 {[%emt 0:05:31]} 12. Nbd2 {[%emt 0:00:08]} b4 {[%emt 0:05:01]} 13. O-O {[%emt 0:04:14]} Bg4 {[%emt 0:02:10]} 14. Ne1 {[%emt 0:04:04]} Bxe2 {[%emt 0:02:26]} 15. Qxe2 {[%emt 0:00:51]} Qe7 {[%emt 0:00:36]} 16. Nd3 {[%emt 0:09:07]} Nd7 {[%emt 0:07:47]} 17. Re1 {[%emt 0:03:29]} Rab8 {[%emt 0:08:32]} 18. Nc4 {[%emt 0:06:18]} b3 {[%emt 0:18:15]} 19. Raa1 {[%emt 0:07:22]} Nb6 {[%emt 0:03:56]} 20. Na5 {[%emt 0:04:19]} Qd7 {[%emt 0:08:09]} 21. Nc6 {[%emt 0:01:10]} Rbc8 {[%emt 0:01:02]} 22. Qd1 {[%emt 0:05:23]} c4 {[%emt 0:02:45]} 23. a5 {[%emt 0:01:55]} Na8 {[%emt 0:06:33]} 24. e5 {[%emt 0:00:12]} dxe5 {[%emt 0:01:50]} 25. Ndxe5 {[%emt 0:00:20]} Bxe5 {[%emt 0:00:55]} 26. Nxe5 {[%emt 0:01:37]} Qd6 {[%emt 0:02:45]} 27. Qd4 {[%emt 0:00:06]} Nc7 {[%emt 0:01:19]} 28. Nxc4 {[%emt 0:05:45]} Qxd5 {[%emt 0:00:17]} 29. Qxd5 {[%emt 0:02:29]} Nxd5 {[%emt 0:01:10]} 30. Nd6 {[%emt 0:01:59]} Rxe1+ {[%emt 0:00:30]} 31. Rxe1 {[%emt 0:00:02]} Rb8 {[%emt 0:02:06]} 32. g3 {[%emt 0:04:29]} Kf8 {[%emt 0:00:08]} 33. Rc1 {[%emt 0:00:57]} Ke7 {[%emt 0:01:08]} 34. Nf5+ {[%emt 0:00:46]} Kf6 {[%emt 0:00:16]} 35. Nd4 {[%emt 0:00:09]} Nb4 {[%emt 0:01:28]} 36. Rc3 {[%emt 0:02:06]} Rd8 {[%emt 0:00:42]} 37. Nxb3 {[%emt 0:00:15]} g6 {[%emt 0:01:11]} 38. Nc5 {[%emt 0:01:25]} Rd5 {[%emt 0:00:42]} 39. Nxa6 {[%emt 0:00:28]} Rd1+ {[%emt 0:00:53]} 40. Kg2 {[%emt 0:00:07]} Nd3 {[%emt 0:00:16]} 41. b4 {[%emt 0:05:00]} Rd2 {[%emt 0:03:43]} 42. Rxd3 {[%emt 0:10:54]} Rxd3 {[%emt 0:00:18]} 43. b5 {[%emt 0:00:14]} Ke5 {[%emt 0:12:08]} 44. b6 {[%emt 0:01:37]} Rb3 {[%emt 0:01:11]} 45. Nc5 {[%emt 0:00:08]} Rb5 {[%emt 0:02:51]} 46. a6 {[%emt 0:00:20]} Kd6 {[%emt 0:05:58]} 47. a7 {[%emt 0:00:14]} Rxb6 {[%emt 0:00:50]} 48. Ne4+ {[%emt 0:00:44]} Kd5 {[%emt 0:07:52]} 1-0

[Event "110th Anniversary WIM 2020"]
[Site "Hilleroed"]
[Date "2020.02.09"]
[Round "2.1"]
[White "Zaritovskaja, Margarita"]
[Black "Nastase, Andreea-Cristina"]
[Result "1-0"]
[ECO "B80"]
[WhiteElo "2022"]
[BlackElo "2090"]
[Annotator "NA"]
[PlyCount "89"]
[EventDate "2020.02.08"]
[EventType "tourn"]
[EventCountry "DEN"]
[SourceTitle "playchess.com"]
[Source "ChessBase"]
[SourceQuality "1"]
[TimeControl "40/5400+30:1800+30"]

1. e4 {[%emt 0:00:00]} c5 {[%emt 0:00:00]} 2. Nf3 {[%emt 0:00:00]} d6 {[%emt 0:00:00]} 3. d4 {[%emt 0:00:00]} cxd4 {[%emt 0:00:00]} 4. Nxd4 {[%emt 0:00:00]} Nf6 {[%emt 0:00:00]} 5. Nc3 {[%emt 0:00:00]} a6 {[%emt 0:00:00]} 6. Be3 {[%emt 0:00:08]} e6 {[%emt 0:00:00]} 7. f3 {[%emt 0:00:11]} b5 {[%emt 0:00:53]} 8. Qd2 {[%emt 0:00:27]} Nbd7 {[%emt 0:00:03]} 9. Bd3 {[%emt 0:08:30]} Nb6 $14 {[%emt 0:00:23]} 10. a4 {[%emt 0:05:47]} Nc4 {[%emt 0:04:06]} 11. Bxc4 {[%emt 0:00:27]} bxc4 {[%emt 0:00:04]} 12. O-O {[%emt 0:03:55]} Bb7 {[%emt 0:01:23]} 13. a5 {[%emt 0:02:06]} d5 {[%emt 0:03:57]} 14. e5 {[%emt 0:03:51]} Nd7 {[%emt 0:00:09]} 15. f4 {[%emt 0:00:39]} g6 {[%emt 0:06:03]} 16. Rae1 {[%emt 0:12:51]} Qxa5 {[%emt 0:07:07]} 17. f5 {[%emt 0:07:24]} gxf5 {[%emt 0:02:26]} 18. Bg5 {[%emt 0:00:55]} Bc5 {[%emt 0:03:49]} 19. Kh1 {[%emt 0:01:16]} Bxd4 {[%emt 0:02:06]} 20. Qxd4 {[%emt 0:00:04]} Qc5 {[%emt 0:01:07]} 21. Qh4 {[%emt 0:02:10]} d4 {[%emt 0:04:07]} 22. Ne2 {[%emt 0:19:01]} Be4 {[%emt 0:10:04]} 23. Nf4 {[%emt 0:06:54]} Qxe5 {[%emt 0:08:30]} 24. Nh5 {[%emt 0:07:48]} Rg8 {[%emt 0:01:54]} 25. Ng3 {[%emt 0:00:32]} Qg7 {[%emt 0:10:40]} 26. Nxe4 {[%emt 0:01:04]} fxe4 {[%emt 0:00:50]} 27. Qxe4 {[%emt 0:00:12]} Qxg5 {[%emt 0:03:12]} 28. Qxa8+ {[%emt 0:00:42]} Ke7 {[%emt 0:00:07]} 29. Qf3 {[%emt 0:04:42]} f6 {[%emt 0:00:46]} 30. Qe4 {[%emt 0:02:50]} e5 {[%emt 0:02:59]} 31. Rf2 {[%emt 0:02:12]} Kd6 {[%emt 0:02:57]} 32. Qxh7 {[%emt 0:02:23]} Rg6 {[%emt 0:00:53]} 33. Qh3 {[%emt 0:01:09]} Rh6 {[%emt 0:03:24]} 34. Qf3 {[%emt 0:00:35]} Nc5 {[%emt 0:01:23]} 35. b4 {[%emt 0:02:39]} cxb3 {[%emt 0:00:52]} 36. cxb3 {[%emt 0:00:01]} e4 {[%emt 0:00:23]} 37. Qe2 {[%emt 0:03:02]} Nd3 {[%emt 0:04:22]} 38. Ra1 {[%emt 0:00:49]} Nxf2+ 39. Qxf2 {[%emt 0:00:02]} Qe5 {[%emt 0:01:30]} 40. Rxa6+ {[%emt 0:00:36]} Ke7 {[%emt 0:01:20]} 41. h3 {[%emt 0:30:47]} Kf7 {[%emt 0:42:18]} 42. Ra7+ {[%emt 0:00:00]} Kg6 {[%emt 0:00:00]} 43. Qe2 {[%emt 0:00:00]} Rh4 {[%emt 0:00:00]} 44. Qc4 {[%emt 0:00:00]} Rh7 {[%emt 0:00:00]} 45. Qg8+ {[%emt 0:00:00]} 1-0

[Event "110th Anniversary WIM 2020"]
[Site "Hilleroed"]
[Date "2020.02.09"]
[Round "2.2"]
[White "Kakulidis, Ellen"]
[Black "Stanford, Sheila Barth"]
[Result "1/2-1/2"]
[ECO "E01"]
[WhiteElo "2052"]
[BlackElo "2145"]
[Annotator "ChessBase"]
[PlyCount "56"]
[EventDate "2020.02.08"]
[EventType "tourn"]
[EventCountry "DEN"]
[SourceTitle "playchess.com"]
[Source "ChessBase"]
[SourceQuality "1"]
[TimeControl "40/5400+30:1800+30"]

1. d4 {[%emt 0:00:00]} Nf6 {[%emt 0:01:38]} 2. Nf3 {[%emt 0:00:00]} d5 {[%emt 0:00:25]} 3. c4 {[%emt 0:00:00]} e6 {[%emt 0:00:00]} 4. g3 {[%emt 0:01:13]} dxc4 {[%emt 0:02:42]} 5. Qa4+ {[%emt 0:01:18]} Bd7 {[%emt 0:01:19]} 6. Qxc4 {[%emt 0:01:02]} Bc6 {[%emt 0:02:04]} 7. Bg2 {[%emt 0:02:24]} a6 {[%emt 0:00:43]} 8. O-O {[%emt 0:02:59]} Be7 {[%emt 0:01:38]} 9. Qd3 {[%emt 0:06:19]} O-O {[%emt 0:02:22]} 10. Nc3 {[%emt 0:01:23]} b5 {[%emt 0:00:25]} 11. Ne5 {[%emt 0:24:32]} Bxg2 {[%emt 0:01:23]} 12. Kxg2 {[%emt 0:00:43]} c5 {[%emt 0:06:34]} 13. dxc5 {[%emt 0:04:53]} Bxc5 {[%emt 0:00:54]} 14. Qf3 {[%emt 0:03:29]} Nbd7 {[%emt 0:02:53]} 15. Nxd7 {[%emt 0:04:41]} Nxd7 {[%emt 0:02:51]} 16. Rd1 {[%emt 0:02:45]} Qe7 {[%emt 0:14:59]} 17. Ne4 {[%emt 0:05:44]} Ba7 {[%emt 0:08:59]} 18. Bf4 {[%emt 0:11:14]} f5 {[%emt 0:10:04]} 19. Nc3 {[%emt 0:07:25]} Rfe8 {[%emt 0:03:46]} 20. Qb7 {[%emt 0:04:51]} Nc5 {[%emt 0:10:19]} 21. Qxe7 {[%emt 0:00:09]} Rxe7 {[%emt 0:00:05]} 22. Bd6 {[%emt 0:01:30]} Rb7 {[%emt 0:00:22]} 23. Rac1 {[%emt 0:04:16]} Nd7 {[%emt 0:09:20]} 24. Nb1 {[%emt 0:00:38]} Nf6 {[%emt 0:00:19]} 25. Be5 {[%emt 0:03:28]} Nd7 {[%emt 0:05:39]} 26. Bd6 {[%emt 0:01:10]} Nf6 {[%emt 0:00:11]} 27. Be5 {[%emt 0:00:04]} Nd7 {[%emt 0:00:32]} 28. Bd6 {[%emt 0:02:27]} Nf6 {[%emt 0:11:34]} 1/2-1/2

[Event "110th Anniversary WIM 2020"]
[Site "Hilleroed"]
[Date "2020.02.09"]
[Round "2.3"]
[White "Baliuniene, Margarita"]
[Black "Miturova, Magdalena"]
[Result "0-1"]
[ECO "E14"]
[WhiteElo "1982"]
[BlackElo "2185"]
[Annotator "ChessBase"]
[PlyCount "62"]
[EventDate "2020.02.08"]
[EventType "tourn"]
[EventCountry "DEN"]
[SourceTitle "playchess.com"]
[Source "ChessBase"]
[SourceQuality "1"]
[TimeControl "40/5400+30:1800+30"]

1. d4 {[%emt 0:00:00]} Nf6 {[%emt 0:00:00]} 2. c4 {[%emt 0:00:00]} e6 {[%emt 0:00:00]} 3. Nf3 {[%emt 0:00:00]} Bb4+ {[%emt 0:00:00]} 4. Nbd2 {[%emt 0:00:00]} O-O {[%emt 0:00:21]} 5. a3 {[%emt 0:00:05]} Be7 {[%emt 0:00:08]} 6. e3 {[%emt 0:00:40]} d5 {[%emt 0:05:12]} 7. Bd3 {[%emt 0:00:30]} b6 {[%emt 0:01:28]} 8. O-O {[%emt 0:01:19]} Bb7 {[%emt 0:00:38]} 9. b4 {[%emt 0:03:35]} a5 {[%emt 0:02:48]} 10. bxa5 {[%emt 0:03:04]} Rxa5 {[%emt 0:00:32]} 11. Bb2 {[%emt 0:01:31]} Nbd7 {[%emt 0:01:12]} 12. Qc2 {[%emt 0:01:02]} Qa8 {[%emt 0:10:15]} 13. cxd5 {[%emt 0:03:24]} exd5 {[%emt 0:00:20]} 14. Ne5 {[%emt 0:04:54]} Nxe5 {[%emt 0:13:04]} 15. dxe5 {[%emt 0:00:05]} Rc5 {[%emt 0:01:29]} 16. Qb1 {[%emt 0:06:05]} Ne4 {[%emt 0:03:19]} 17. Nb3 {[%emt 0:00:39]} Rc6 {[%emt 0:05:32]} 18. f3 {[%emt 1:12:07]} Nc3 {[%emt 0:07:12]} 19. Bxh7+ {[%emt 0:00:00]} Kh8 {[%emt 0:00:12]} 20. Bxc3 {[%emt 0:00:00]} Rxc3 {[%emt 0:00:45]} 21. Bd3 {[%emt 0:00:00]} c5 {[%emt 0:05:45]} 22. Rc1 {[%emt 0:00:00]} Rxc1+ {[%emt 0:06:25]} 23. Nxc1 {[%emt 0:00:00]} c4 {[%emt 0:00:23]} 24. Bf5 {[%emt 0:00:00]} Bc5 {[%emt 0:01:08]} 25. Ne2 {[%emt 0:00:00]} Bxe3+ {[%emt 0:00:22]} 26. Kh1 {[%emt 0:00:00]} d4 {[%emt 0:05:44]} 27. Bg4 {[%emt 0:00:00]} d3 {[%emt 0:01:18]} 28. Ng3 {[%emt 0:00:00]} Bd4 {[%emt 0:03:36]} 29. Ra2 {[%emt 0:00:00]} Qa5 {[%emt 0:01:21]} 30. e6 {[%emt 0:00:00]} fxe6 {[%emt 0:01:16]} 31. Bxe6 {[%emt 0:00:00]} Re8 {[%emt 0:01:10]} 0-1

[Event "110th Anniversary WIM 2020"]
[Site "Hilleroed"]
[Date "2020.02.09"]
[Round "2.4"]
[White "Kejzar, Petra"]
[Black "Nilssen, Ellen Fredericia"]
[Result "1-0"]
[ECO "B37"]
[WhiteElo "2072"]
[BlackElo "2065"]
[Annotator "NA"]
[PlyCount "69"]
[EventDate "2020.02.08"]
[EventType "tourn"]
[EventCountry "DEN"]
[SourceTitle "playchess.com"]
[Source "ChessBase"]
[SourceQuality "1"]
[TimeControl "40/5400+30:1800+30"]

1. c4 {[%emt 0:00:00]} c5 {[%emt 0:00:00]} 2. Nf3 {[%emt 0:00:00]} Nc6 {[%emt 0:00:00]} 3. Nc3 {[%emt 0:00:07]} g6 {[%emt 0:00:14]} 4. d4 {[%emt 0:01:31]} cxd4 {[%emt 0:02:36]} 5. Nxd4 {[%emt 0:00:09]} Bg7 {[%emt 0:00:12]} 6. Nc2 {[%emt 0:00:33]} Nf6 {[%emt 0:03:54]} 7. e4 {[%emt 0:01:06]} d6 {[%emt 0:02:20]} 8. Be2 $11 {[%emt 0:01:04]} O-O {[%emt 0:09:51]} 9. Be3 {[%emt 0:05:43]} a5 {[%emt 0:04:01]} 10. f3 {[%emt 0:04:34]} Be6 {[%emt 0:12:43]} 11. Na4 {[%emt 0:25:21]} Nd7 {[%emt 0:02:31]} 12. O-O {[%emt 0:08:01]} Nc5 {[%emt 0:06:26]} 13. Nxc5 {[%emt 0:03:42]} dxc5 {[%emt 0:00:10]} 14. Bxc5 {[%emt 0:01:13]} Bxb2 {[%emt 0:02:30]} 15. Rb1 {[%emt 0:00:22]} Bf6 {[%emt 0:00:52]} 16. Bb6 {[%emt 0:07:53]} Qxd1 {[%emt 0:04:35]} 17. Rfxd1 {[%emt 0:00:27]} Rfc8 {[%emt 0:03:54]} 18. f4 {[%emt 0:02:25]} Nb4 {[%emt 0:02:23]} 19. Nxb4 {[%emt 0:07:05]} axb4 {[%emt 0:00:10]} 20. e5 {[%emt 0:00:27]} Bg7 {[%emt 0:00:49]} 21. Rxb4 {[%emt 0:00:43]} Rxa2 {[%emt 0:00:29]} 22. Bd3 {[%emt 0:02:09]} Bh6 {[%emt 0:05:39]} 23. c5 {[%emt 0:00:51]} Bg4 {[%emt 0:07:13]} 24. Re1 {[%emt 0:01:15]} Bd7 {[%emt 0:08:00]} 25. Bc4 {[%emt 0:01:40]} Rd2 {[%emt 0:00:20]} 26. e6 {[%emt 0:02:01]} Bxe6 {[%emt 0:00:56]} 27. Rxe6 {[%emt 0:01:56]} Bg7 {[%emt 0:05:50]} 28. Re4 {[%emt 0:03:06]} Ra8 {[%emt 0:01:02]} 29. Rb1 {[%emt 0:00:38]} Kf8 {[%emt 0:03:01]} 30. Be2 {[%emt 0:04:19]} Raa2 {[%emt 0:01:20]} 31. Bf3 {[%emt 0:00:39]} Rac2 {[%emt 0:03:29]} 32. Ra4 {[%emt 0:00:20]} Bc3 {[%emt 0:02:17]} 33. Be4 {[%emt 0:00:59]} Rb2 {[%emt 0:01:15]} 34. Rxb2 {[%emt 0:00:08]} Bxb2 {[%emt 0:00:46]} 35. Bxb7 {[%emt 0:01:02]} 1-0